bitfinex-derivatives/quotes_BNBF0:USTF0_20250529
["timestamp","ask_amount","ask_price","bid_price","bid_amount"]
[1748494276991,0.29331104,681.87,680.48,0.55824993]
[1748494277188,0.29331104,681.87,680.49,0.55824993]
[1748494277394,0.29331104,681.87,680.5,0.55824993]
[1748494277590,0.29331104,681.87,680.51,0.55812991]
[1748494277895,0.29331104,681.87,680.52,0.55812991]
[1748494278090,0.29331104,681.87,680.53,0.55781481]
[1748494278295,0.29331104,681.87,680.54,0.55778737]
[1748494278491,0.29331104,681.87,680.62,0.46556979]
[1748494278794,0.29331104,681.87,680.65,0.46556979]
[1748494278996,0.29331104,681.87,680.66,0.55771823]
[1748494279296,0.29331104,681.87,680.46,0.46556979]
[1748494279795,0.29331104,681.87,680.33,0.55937305]
[1748494279796,0.29331104,681.87,680.45,0.46556979]
[1748494279997,0.29331104,681.87,680.46,0.46556979]
[1748494280194,0.29331104,681.87,680.47,0.5576743]
[1748494280391,0.29331104,681.87,680.42,0.46556979]
[1748494280692,0.29331104,681.87,680.48,0.382]
[1748494280892,0.29331104,681.87,680.49,0.55764872]
[1748494281192,0.29331104,681.87,680.48,0.382]
[1748494281392,0.29331104,681.87,680.49,0.55770465]
[1748494281591,0.29331104,681.87,680.5,0.5577043]
[1748494281792,0.29331104,681.87,680.51,0.55769356]
[1748494282097,0.29331104,681.87,680.52,0.55769533]
[1748494282294,0.29331104,681.87,680.48,0.382]
[1748494282697,0.29331104,681.87,680.49,0.55775314]
[1748494282897,0.29331104,681.87,680.5,0.55775296]
[1748494283091,0.29331104,681.87,680.51,0.55782279]
[1748494283295,0.29331104,681.87,680.52,0.55782275]
[1748494283497,0.29331104,681.87,680.48,0.382]
[1748494283900,0.29331104,681.87,680.49,0.55782824]
[1748494284095,0.29331104,681.87,680.5,0.55782824]
[1748494284297,0.29331104,681.87,680.49,0.512]
[1748494286195,0.29331104,681.87,680.5,0.55801552]
[1748494286402,0.29331104,681.87,680.49,0.512]
[1748494286602,0.29331104,681.87,680.5,0.55801635]
[1748494286803,0.29331104,681.87,680.49,0.512]
[1748494288005,0.29331104,681.87,680.5,0.55812582]
[1748494288303,0.29331104,681.87,680.49,0.512]
[1748494288304,0.29331104,681.87,680.51,0.5582637]
[1748494288500,0.29331104,681.87,680.52,0.55825943]
[1748494288705,0.29331104,681.87,680.49,0.512]
[1748494289100,0.29331104,681.87,680.5,0.55841866]
[1748494289301,0.29331104,681.87,680.49,0.512]
[1748494290607,0.29331104,681.87,680.5,0.55860755]
[1748494290802,0.29331104,681.87,680.49,0.512]
[1748494291608,0.29331104,681.87,680.5,0.55873629]
[1748494291808,0.29331104,681.87,680.49,0.512]
[1748494292209,0.29331104,681.87,680.5,0.55887901]
[1748494292507,0.29331104,681.87,680.51,0.55887901]
[1748494292703,0.29331104,681.87,680.49,0.512]
[1748494292704,0.29331104,681.87,680.52,0.55887901]
[1748494293008,0.29331104,681.87,680.49,0.512]
[1748494293009,0.29331104,681.87,680.53,0.55869532]
[1748494293203,0.29331104,681.87,680.54,0.55884388]
[1748494293403,0.29331104,681.87,680.55,0.55884282]
[1748494293603,0.29331104,681.87,680.56,0.55884283]
[1748494293809,0.29331104,681.87,680.57,0.55884212]
[1748494294109,0.29331104,681.87,680.49,0.512]
[1748494294905,0.29331104,681.87,680.5,0.55893109]
[1748494295103,0.29331104,681.87,680.49,0.512]
[1748494295410,0.29331104,681.87,680.5,0.55890134]
[1748494295605,0.29331104,681.87,680.51,0.55890144]
[1748494295805,0.29331104,681.87,680.52,0.55890144]
[1748494296005,0.29331104,681.87,680.53,0.55890134]
[1748494296210,0.29331104,681.87,680.54,0.55890134]
[1748494296409,0.29331104,681.87,680.55,0.55890134]
[1748494296710,0.29331104,681.87,680.56,0.55870236]
[1748494296910,0.29331104,681.87,680.57,0.55870236]
[1748494297110,0.29331104,681.87,680.58,0.55870236]
[1748494297311,0.29331104,681.87,680.59,0.55865631]
[1748494297511,0.29331104,681.87,680.6,0.55865631]
[1748494297712,0.29331104,681.87,680.61,0.55865631]
[1748494297912,0.29331104,681.87,680.62,0.55865631]
[1748494298113,0.29331104,681.87,680.63,0.55865631]
[1748494298412,0.29331104,681.87,680.64,0.55843918]
[1748494298613,0.29331104,681.87,680.65,0.55834036]
[1748494298807,0.29331104,681.87,680.66,0.55834036]
[1748494299008,0.29331104,681.87,680.67,0.55834111]
[1748494299310,0.29331104,681.87,680.68,0.55834111]
[1748494299512,0.29331104,681.87,680.69,0.55834111]
[1748494299713,0.29331104,681.87,680.7,0.55834111]
[1748494299914,0.29331104,681.87,680.49,0.512]
[1748494300110,0.29331104,681.87,680.5,0.55822109]
[1748494300312,0.29331104,681.87,680.51,0.55822109]
[1748494300510,0.29331104,681.87,680.52,0.55817664]
[1748494300712,0.29331104,681.87,680.53,0.55817664]
[1748494300916,0.29331104,681.87,680.54,0.55809533]
[1748494301217,0.29331104,681.87,680.55,0.55809533]
[1748494301415,0.29331104,681.87,680.56,0.55809533]
[1748494301717,0.29331104,681.87,680.49,0.512]
[1748494301718,0.29331104,681.87,680.57,0.55809533]
[1748494301914,0.29331104,681.87,680.58,0.55809533]
[1748494302219,0.29331104,681.87,680.59,1.02340057]
[1748494302515,0.29331104,681.87,680.6,1.0234499]
[1748494302718,0.29331104,681.87,680.61,0.55788011]
[1748494302920,0.29331104,681.87,680.62,0.55788011]
[1748494303123,0.29331104,681.87,680.63,0.55788011]
[1748494303322,0.29331104,681.87,680.64,0.55788011]
[1748494303519,0.29331104,681.87,680.65,0.55771167]
[1748494303822,0.29331104,681.87,680.66,0.55751164]
[1748494304020,0.29331104,681.87,680.67,0.55751164]
[1748494304219,0.29331104,681.87,680.68,0.55760058]
[1748494304524,0.29331104,681.87,680.67,0.46556979]
[1748494304819,0.29331104,681.87,680.7,0.46556979]
[1748494305424,0.29331104,681.87,680.72,0.46556979]
[1748494305923,0.29331104,681.87,680.69,0.46556979]
[1748494306124,0.29331104,681.87,680.68,0.46556979]
[1748494306325,0.29331104,681.87,680.71,0.46556979]
[1748494306721,0.29331104,681.87,680.72,0.55771139]
[1748494306920,0.29331104,681.87,680.73,0.55771139]
[1748494307223,0.29331104,681.87,680.71,0.46556979]
[1748494307525,0.29331104,681.87,680.49,0.512]
[1748494307526,0.29331104,681.87,680.73,0.46556979]
[1748494308222,0.29331104,681.87,680.64,0.46556979]
[1748494308426,0.29331104,681.87,680.65,0.46556979]
[1748494309020,0.29331104,681.87,680.66,0.5580072]
[1748494309223,0.29331104,681.87,680.65,0.46556979]
[1748494309425,0.29331104,681.87,680.67,0.46556979]
[1748494309827,0.29331104,681.87,680.64,0.46556979]
[1748494310428,0.29331104,681.87,680.66,0.46556979]
[1748494310626,0.29331104,681.87,680.67,0.46556979]
[1748494310925,0.29331104,681.87,680.66,0.46556979]
[1748494311123,0.29331104,681.87,680.67,0.55833026]
[1748494311326,0.29331104,681.87,680.68,0.46556979]
[1748494311522,0.29331104,681.87,680.69,0.55833016]
[1748494311823,0.29331104,681.87,680.7,0.55833016]
[1748494312026,0.29331104,681.87,680.71,0.55833016]
[1748494312222,0.29331104,681.87,680.55,0.46556979]
[1748494312422,0.29331104,681.87,680.56,0.55828667]
[1748494312622,0.29331104,681.87,680.57,0.558286]
[1748494312827,0.29331104,681.87,680.58,0.558286]
[1748494313027,0.29331104,681.87,680.59,0.558286]
[1748494313226,0.29331104,681.87,680.6,0.558286]
[1748494313426,0.29331104,681.87,680.61,0.558286]
[1748494313622,0.29331104,681.87,680.55,0.46556979]
[1748494314225,0.29331104,681.87,680.56,0.5582351]
[1748494314425,0.29331104,681.87,680.57,0.5582351]
[1748494314625,0.29331104,681.87,680.58,0.5582351]
[1748494314822,0.29331104,681.87,680.59,0.5582351]
[1748494315028,0.29331104,681.87,680.6,0.5582351]
[1748494315227,0.29331104,681.87,680.61,0.55810777]
[1748494315428,0.29331104,681.87,680.62,0.55810777]
[1748494315724,0.29331104,681.87,680.63,0.55791231]
[1748494315924,0.29331104,681.87,680.64,0.55789173]
[1748494316130,0.29331104,681.87,680.59,0.46556979]
[1748494316330,0.29331104,681.87,680.6,0.55798292]
[1748494316624,0.29331104,681.87,680.61,0.55798278]
[1748494316826,0.29331104,681.87,680.62,0.46556979]
[1748494317027,0.29331104,681.87,680.63,0.55765323]
[1748494317229,0.29331104,681.87,680.64,1.02322302]
[1748494317427,0.29331104,681.87,680.65,0.55765323]
[1748494317623,0.29331104,681.87,680.64,0.46556979]
[1748494317624,0.29331104,681.87,680.66,0.557764]
[1748494317829,0.29331104,681.87,680.67,0.55776479]
[1748494318028,0.29331104,681.87,680.68,0.55776506]
[1748494318229,0.29331104,681.87,680.66,0.46556979]
[1748494318426,0.29331104,681.87,680.67,0.46556979]
[1748494319328,0.29331104,681.87,680.66,0.46556979]
[1748494319729,0.29331104,681.87,680.67,0.55784371]
[1748494320033,0.29331104,681.87,680.66,0.46556979]
[1748494320531,0.29331104,681.87,680.67,0.46556979]
[1748494320935,0.29331104,681.87,680.8,0.46556979]
[1748494321332,0.29331104,681.87,680.79,0.46556979]
[1748494321536,0.29331104,681.87,680.8,0.55784515]
[1748494321732,0.29331104,681.87,680.77,0.46556979]
[1748494321937,0.29331104,681.87,680.78,1.02350974]
[1748494322134,0.29331104,681.87,680.79,0.55793995]
[1748494322334,0.29331104,681.87,680.8,1.02351039]
[1748494322538,0.29331104,681.87,680.79,0.46556979]
[1748494322838,0.29331104,681.87,680.8,0.55774796]
[1748494323038,0.29331104,681.87,680.81,0.55774796]
[1748494323233,0.29331104,681.87,680.82,0.55774796]
[1748494323438,0.29331104,681.87,680.78,0.46556979]
[1748494323735,0.29331104,681.87,680.79,0.55787108]
[1748494323935,0.29331104,681.87,680.8,0.55787108]
[1748494324137,0.29331104,681.87,680.81,0.55787108]
[1748494324441,0.29331104,681.87,680.82,0.55789036]
[1748494324638,0.29331104,681.87,680.83,0.55789036]
[1748494324838,0.29331104,681.87,680.84,0.55809717]
[1748494325135,0.29331104,681.87,680.85,0.55809611]
[1748494325339,0.29331104,681.87,680.86,0.55809611]
[1748494325638,0.29331104,681.87,680.68,0.46556979]
[1748494325836,0.29331104,681.87,680.69,0.55825685]
[1748494326237,0.29331104,681.87,680.7,0.55826332]
[1748494326534,0.29331104,681.87,680.71,0.55826335]
[1748494326736,0.29331104,681.87,680.56,0.834]
[1748494326935,0.29331104,681.87,680.57,0.55826443]
[1748494327136,0.29331104,681.87,680.58,0.55821448]
[1748494327434,0.29331104,681.87,680.59,0.55821231]
[1748494327637,0.29331104,681.87,680.6,0.55821187]
[1748494327837,0.29331104,681.87,680.61,0.55821187]
[1748494328039,0.29331104,681.87,680.62,0.55821187]
[1748494328338,0.29331104,681.87,680.63,0.55821187]
[1748494328533,0.29331104,681.87,680.64,0.55821187]
[1748494328835,0.29331104,681.87,680.65,0.55821187]
[1748494329040,0.29331104,681.87,680.66,0.55797133]
[1748494329239,0.29331104,681.87,680.67,0.55797133]
[1748494329440,0.29331104,681.87,680.68,0.55795096]
[1748494329739,0.29331104,681.87,680.69,0.55795096]
[1748494329936,0.29331104,681.87,680.7,0.55795096]
[1748494330239,0.29331104,681.87,680.71,0.55773614]
[1748494330442,0.29331104,681.87,680.72,0.55773614]
[1748494330634,0.29331104,681.87,680.73,0.55773614]
[1748494330841,0.29331104,681.87,680.74,0.55755525]
[1748494331037,0.29331104,681.87,680.75,0.55755484]
[1748494331237,0.29331104,681.87,680.81,0.46556979]
[1748494331640,0.29331104,681.87,680.82,0.55751702]
[1748494331839,0.29331104,681.87,680.83,0.55751702]
[1748494332041,0.29331104,681.87,680.84,0.55751702]
[1748494332239,0.29331104,681.87,680.85,0.55751702]
[1748494332440,0.29331104,681.87,680.86,0.55751702]
[1748494332635,0.29331104,681.87,680.87,0.55751702]
[1748494332835,0.29331104,681.87,680.76,0.46556979]
[1748494333041,0.29331104,681.87,680.77,0.55702652]
[1748494333342,0.29331104,681.87,680.8,0.46556979]
[1748494333542,0.29331104,681.87,680.81,0.55702652]
[1748494333742,0.29331104,681.87,680.82,0.55684373]
[1748494333942,0.29331104,681.87,680.56,0.834]
[1748494333943,0.29331104,681.87,680.83,0.55684373]
[1748494334144,0.29331104,681.87,680.79,0.46556979]
[1748494334439,0.29331104,681.87,680.8,0.55684473]
[1748494334741,0.29331104,681.87,680.81,0.55684473]
[1748494334942,0.29331104,681.87,680.82,0.55684473]
[1748494335140,0.29331104,681.87,680.83,0.55669837]
[1748494335344,0.29331104,681.87,680.84,0.55669837]
[1748494335539,0.29331104,681.87,680.85,0.55669837]
[1748494335741,0.29331104,681.87,680.86,0.55669837]
[1748494335937,0.29331104,681.87,680.87,0.55669837]
[1748494336142,0.29331104,681.87,680.88,0.55669837]
[1748494336348,0.29331104,681.87,680.89,0.55674483]
[1748494336537,0.29331104,681.87,680.9,0.55674483]
[1748494336742,0.29331104,681.87,680.91,0.55679842]
[1748494337041,0.29331104,681.87,680.92,0.55679842]
[1748494337246,0.29331104,681.87,680.8,0.46556979]
[1748494337247,0.29331104,681.87,680.93,0.55679842]
[1748494337449,0.29331104,681.87,680.94,0.55679842]
[1748494337749,0.29331104,681.87,680.95,0.55672274]
[1748494337945,0.29331104,681.87,680.96,0.55672274]
[1748494338149,0.29331104,681.87,680.97,0.55672274]
[1748494338348,0.29331104,681.87,680.98,0.55672274]
[1748494338550,0.29331104,681.87,680.99,0.55666055]
[1748494338850,0.29331104,681.87,681.0,0.55666055]
[1748494339052,0.29331104,681.87,681.01,0.55660288]
[1748494339251,0.29331104,681.87,680.78,0.46556979]
[1748494339252,0.29331104,681.87,681.02,0.55660288]
[1748494339547,0.29331104,681.87,681.03,0.55660288]
[1748494339750,0.29331104,681.87,681.04,0.55660288]
[1748494340046,0.29331104,681.87,681.05,0.55660288]
[1748494340256,0.29331104,681.87,681.06,0.55660288]
[1748494340447,0.29331104,681.87,681.07,0.55660288]
[1748494340649,0.29331104,681.87,681.08,0.55656883]
[1748494340951,0.29331104,681.87,681.09,0.55656883]
[1748494341147,0.29331104,681.87,681.1,0.55656883]
[1748494341352,0.29331104,681.87,681.11,0.55662255]
[1748494341652,0.29331104,681.87,681.12,0.55662387]
[1748494341849,0.29331104,681.87,681.13,0.55662387]
[1748494342150,0.29331104,681.87,681.14,0.55662338]
[1748494342355,0.29331104,681.87,681.15,0.55662543]
[1748494342551,0.29331104,681.87,681.16,0.55662536]
[1748494342749,0.29331104,681.87,680.63,0.46556979]
[1748494342949,0.29331104,681.87,680.64,0.55662603]
[1748494343151,0.29331104,681.87,680.65,1.02219463]
[1748494343349,0.29331104,681.87,680.66,0.55662484]
[1748494343648,0.29331104,681.87,680.67,0.55662484]
[1748494343848,0.29331104,681.87,680.68,0.55662484]
[1748494344148,0.29331104,681.87,680.69,0.55662512]
[1748494344349,0.29331104,681.87,680.7,0.55662478]
[1748494344553,0.29331104,681.87,680.67,0.46556979]
[1748494344950,0.29331104,681.87,680.68,0.55662441]
[1748494345151,0.29331104,681.87,680.67,0.46556979]
[1748494345449,0.29331104,681.87,680.68,0.46556979]
[1748494345650,0.29331104,681.87,680.68,1.0221942]
[1748494345851,0.29331104,681.87,680.68,0.46556979]
[1748494346256,0.29331104,681.87,680.7,0.46556979]
[1748494346653,0.29331104,681.87,680.67,0.46556979]
[1748494347059,0.29331104,681.87,680.68,0.55662847]
[1748494347260,0.29331104,681.87,680.69,1.02219837]
[1748494347454,0.29331104,681.87,680.7,0.46556979]
[1748494347661,0.29331104,681.87,680.67,0.46556979]
[1748494348161,0.29331104,681.87,680.56,0.834]
[1748494348757,0.29331104,681.87,680.57,0.55667238]
[1748494348956,0.29331104,681.87,680.56,0.834]
[1748494349456,0.29331104,681.87,680.57,0.55669096]
[1748494349656,0.29331104,681.87,680.58,0.55669118]
[1748494349859,0.29331104,681.87,680.56,0.834]
[1748494350061,0.29331104,681.87,680.57,0.55677003]
[1748494350258,0.29331104,681.87,680.58,1.6005884]
[1748494350462,0.29331104,681.87,680.59,1.6005884]
[1748494350662,0.29331104,681.87,680.72,0.46556979]
[1748494350862,0.29331104,681.87,680.73,1.6005884]
[1748494351167,0.29331104,681.87,680.76,0.46556979]
[1748494351361,0.29331104,681.87,680.77,1.6005884]
[1748494351564,0.29331104,681.87,680.78,0.55677003]
[1748494351762,0.29331104,681.87,680.79,1.6010859]
[1748494351966,0.29331104,681.87,680.75,0.46556979]
[1748494352163,0.29331104,681.87,680.76,1.60108581]
[1748494352369,0.29331104,681.87,680.77,1.60108581]
[1748494352568,0.29331104,681.87,680.78,1.60140519]
[1748494352763,0.29331104,681.87,680.79,1.60140519]
[1748494352969,0.29331104,681.87,680.8,1.60140519]
[1748494353169,0.29331104,681.87,680.81,1.60140519]
[1748494353369,0.29331104,681.87,680.82,1.60140519]
[1748494353665,0.29331104,681.87,680.83,1.60080988]
[1748494353969,0.29331104,681.87,680.84,1.60071523]
[1748494354164,0.29331104,681.87,680.56,0.834]
[1748494354165,0.29331104,681.87,680.85,1.60071523]
[1748494354365,0.29331104,681.87,680.86,1.60071523]
[1748494354568,0.29331104,681.87,680.56,0.834]
[1748494354770,0.29331104,681.87,680.57,0.5567616]
[1748494354971,0.29331104,681.87,680.6,0.46556979]
[1748494355274,0.29331104,681.87,680.61,0.29385404]
[1748494355669,0.29331104,681.87,680.63,0.46556979]
[1748494356170,0.29331104,681.87,680.67,0.46556979]
[1748494356371,0.29331104,681.87,680.68,1.04366689]
[1748494356571,0.29331104,681.87,680.64,0.46556979]
[1748494356768,0.29331104,681.87,680.65,1.60055472]
[1748494356972,0.29331104,681.87,680.7,0.46556979]
[1748494357173,0.29331104,681.87,680.71,0.55688571]
[1748494357368,0.29331104,681.87,680.71,0.46556979]
[1748494357573,0.29331104,681.87,680.72,0.55703325]
[1748494357873,0.29331104,681.87,680.73,0.55703325]
[1748494358172,0.29331104,681.87,680.71,1.00356979]
[1748494358375,0.29331104,681.87,680.73,0.46556979]
[1748494358571,0.29331104,681.87,680.75,0.46556979]
[1748494358776,0.29331104,681.87,680.76,0.55720607]
[1748494358972,0.29331104,681.87,680.75,0.46556979]
[1748494359372,0.29331104,681.87,680.76,0.55720568]
[1748494359676,0.29331104,681.87,680.75,0.46556979]
[1748494360076,0.29331104,681.87,680.76,0.46556979]
[1748494360273,0.29331104,681.87,680.76,1.02290714]
[1748494360577,0.29331104,681.87,680.77,0.46556979]
[1748494361475,0.29331104,681.87,680.71,0.538]
[1748494361476,0.29331104,681.87,680.78,0.46556979]
[1748494361680,0.29331104,681.87,680.78,0.93756979]
[1748494362079,0.29331104,681.87,680.79,0.55772042]
[1748494362282,0.29331104,681.87,680.78,0.93756979]
[1748494363081,0.29331104,681.87,680.79,1.02337353]
[1748494363378,0.29331104,681.87,680.79,0.46556979]
[1748494363581,0.29331104,681.87,680.87,0.46556979]
[1748494363876,0.29331104,681.87,680.78,0.472]
[1748494363877,0.29331104,681.87,680.88,0.46556979]
[1748494364080,0.29331104,681.87,680.91,0.46556979]
[1748494364883,0.29331104,681.87,680.92,0.55798606]
[1748494365181,0.29331104,681.87,680.89,0.46556979]
[1748494365378,0.29331104,681.87,680.9,0.55798637]
[1748494365581,0.29331104,681.87,680.91,0.55798636]
[1748494365781,0.29331104,681.87,680.78,0.472]
[1748494366181,0.29331104,681.87,680.79,0.55800976]
[1748494366381,0.29331104,681.87,680.8,0.55800977]
[1748494366581,0.29331104,681.87,680.81,0.55800977]
[1748494366781,0.29331104,681.87,680.78,0.472]
[1748494366782,0.29331104,681.87,680.82,0.55800977]
[1748494366977,0.29331104,681.87,680.83,0.55800977]
[1748494367177,0.29331104,681.87,680.78,0.472]
[1748494367382,0.29331104,681.87,680.79,0.55801526]
[1748494367582,0.29331104,681.87,680.8,0.55801499]
[1748494367782,0.29331104,681.87,680.78,0.472]
[1748494367783,0.29331104,681.87,680.81,0.55802306]
[1748494367982,0.29331104,681.87,680.82,0.55802306]
[1748494368184,0.29331104,681.87,680.83,0.55802306]
[1748494368384,0.29331104,681.87,680.84,0.55802306]
[1748494368582,0.29331104,681.87,680.85,0.55802306]
[1748494368781,0.29331104,681.87,680.78,0.472]
[1748494368782,0.29331104,681.87,680.86,0.55803301]
[1748494368978,0.29331104,681.87,680.87,0.55803301]
[1748494369284,0.29331104,681.87,680.88,0.55803303]
[1748494369484,0.29331104,681.87,680.89,0.55803303]
[1748494369680,0.29331104,681.87,680.78,0.472]
[1748494369886,0.29331104,681.87,680.79,0.55803257]
[1748494370186,0.29331104,681.87,680.8,0.5580307]
[1748494370384,0.29331104,681.87,680.81,0.5580307]
[1748494370584,0.29331104,681.87,680.82,0.5580307]
[1748494370785,0.29331104,681.87,680.83,0.55802992]
[1748494371084,0.29331104,681.87,680.84,0.55802992]
[1748494371285,0.29331104,681.87,680.85,0.55803042]
[1748494371485,0.29331104,681.87,680.86,0.55803042]
[1748494371686,0.29331104,681.87,680.87,0.55820982]
[1748494371885,0.29331104,681.87,680.88,0.55820982]
[1748494372087,0.29331104,681.87,680.78,0.472]
[1748494372283,0.29331104,681.87,680.79,0.55820982]
[1748494372487,0.29331104,681.87,680.8,1.60281239]
[1748494372688,0.29331104,681.87,680.81,1.60303696]
[1748494372888,0.29331104,681.87,680.82,1.60303696]
[1748494373086,0.29331104,681.87,680.83,1.60303696]
[1748494373289,0.29331104,681.87,680.78,0.472]
[1748494373488,0.29331104,681.87,680.79,1.60343599]
[1748494373789,0.29331104,681.87,680.8,1.60370129]
[1748494373989,0.29331104,681.87,680.81,1.60417694]
[1748494374288,0.29331104,681.87,680.82,1.60417694]
[1748494374490,0.29331104,681.87,680.83,1.60417691]
[1748494374690,0.29331104,681.87,680.78,0.472]
[1748494374691,0.29331104,681.87,680.84,1.60510026]
[1748494374891,0.29331104,681.87,680.85,1.60510026]
[1748494375093,0.29331104,681.87,680.86,1.60510026]
[1748494375286,0.29331104,681.87,680.87,1.60509728]
[1748494375487,0.29331104,681.87,680.88,1.60516325]
[1748494375791,0.29331104,681.87,680.89,1.60528624]
[1748494375989,0.29331104,681.87,680.9,1.60528624]
[1748494376189,0.29331104,681.87,680.78,0.472]
[1748494376190,0.29331104,681.87,680.91,1.60528624]
[1748494376386,0.29331104,681.87,680.92,1.60528624]
[1748494376591,0.29331104,681.87,680.93,0.55907877]
[1748494376792,0.29331104,681.87,680.94,1.04623679]
[1748494376990,0.29331104,681.87,680.95,1.60533089]
[1748494377193,0.29331104,681.87,680.96,0.55909666]
[1748494377492,0.29331104,681.87,680.97,0.55909666]
[1748494377693,0.29331104,681.87,680.98,0.55909666]
[1748494377993,0.29331104,681.87,680.99,0.55906605]
[1748494378293,0.29331104,681.87,681.0,0.55906605]
[1748494378493,0.29331104,681.87,681.01,0.55906605]
[1748494378693,0.29331104,681.87,681.02,0.55906605]
[1748494378890,0.29331104,681.87,681.03,0.55906605]
[1748494379093,0.29331104,681.87,681.04,0.55906472]
[1748494379294,0.29331104,681.87,681.05,0.55906472]
[1748494379589,0.29331104,681.87,681.06,0.55906472]
[1748494379794,0.29331104,681.87,681.07,0.55904802]
[1748494380090,0.29331104,681.87,681.08,0.55904802]
[1748494380394,0.29331104,681.87,681.09,0.55904802]
[1748494380590,0.29331104,681.87,681.1,0.55904764]
[1748494380791,0.29331104,681.87,681.11,0.5590485]
[1748494380994,0.29331104,681.87,680.78,0.472]
[1748494381695,0.29331104,681.87,680.79,0.55904332]
[1748494381890,0.29331104,681.87,680.8,0.5590385]
[1748494382092,0.29331104,681.87,680.81,0.5590385]
[1748494382397,0.29331104,681.87,680.82,0.5590385]
[1748494382593,0.29331104,681.87,680.83,0.5590385]
[1748494382792,0.29331104,681.87,680.84,0.55897702]
[1748494382997,0.29331104,681.87,680.85,0.55897702]
[1748494383194,0.29331104,681.87,680.86,0.55897972]
[1748494383395,0.29331104,681.87,680.87,0.55898099]
[1748494383594,0.29331104,681.87,680.88,0.55898097]
[1748494383798,0.29331104,681.87,680.78,0.472]
[1748494384200,0.29331104,681.87,680.79,0.55903974]
[1748494384402,0.29331104,681.87,680.8,0.55903974]
[1748494384699,0.29331104,681.87,680.81,0.55903945]
[1748494384899,0.29331104,681.87,680.86,0.46556979]
[1748494385101,0.29331104,681.87,680.87,0.55903945]
[1748494385401,0.29331104,681.87,680.88,0.55903892]
[1748494385601,0.29331104,681.87,680.89,0.55903892]
[1748494385801,0.29331104,681.87,680.88,0.46556979]
[1748494386001,0.29331104,681.87,680.96,0.46556979]
[1748494386198,0.29331104,681.87,680.97,0.55914195]
[1748494386393,0.29331104,681.87,680.78,0.472]
[1748494386394,0.29331104,681.87,680.99,0.46556979]
[1748494386600,0.29331104,681.87,681.0,0.55914195]
[1748494386797,0.29331104,681.87,681.01,0.55912857]
[1748494386997,0.29331104,681.87,681.02,0.55912857]
[1748494387198,0.29331104,681.87,681.03,0.55912857]
[1748494387502,0.29331104,681.87,681.04,0.55912833]
[1748494387706,0.29331104,681.87,681.05,0.55912833]
[1748494387901,0.29331104,681.87,681.06,0.55912833]
[1748494388100,0.29331104,681.87,680.97,0.46556979]
[1748494388400,0.29331104,681.87,680.78,0.472]
[1748494388401,0.29331104,681.87,681.03,0.46556979]
[1748494388598,0.29331104,681.87,680.78,0.472]
[1748494388599,0.29331104,681.87,681.06,0.46556979]
[1748494388997,0.29331104,681.87,681.05,0.46556979]
[1748494389402,0.29331104,681.87,681.06,0.55934348]
[1748494389601,0.29331104,681.87,681.07,0.55934348]
[1748494389801,0.29331104,681.87,681.08,0.55936687]
[1748494389999,0.29331104,681.87,681.09,0.55936687]
[1748494390202,0.29331104,681.87,681.1,0.55936687]
[1748494390398,0.29331104,681.87,681.11,0.55936687]
[1748494390603,0.29331104,681.87,681.12,0.55936687]
[1748494390899,0.29331104,681.87,680.78,0.472]
[1748494390900,0.29331104,681.87,681.13,0.55938262]
[1748494391098,0.29331104,681.87,681.14,0.55938262]
[1748494391404,0.29331104,681.87,681.15,0.55938024]
[1748494391703,0.29331104,681.87,681.16,0.55938024]
[1748494391905,0.29331104,681.87,681.17,0.55938024]
[1748494392105,0.29331104,681.87,681.18,0.55938024]
[1748494392307,0.29331104,681.87,681.19,0.55938024]
[1748494392501,0.29331104,681.87,681.15,0.531]
[1748494393007,0.29331104,681.87,681.16,0.55932507]
[1748494393206,0.29331104,681.87,681.15,0.531]
[1748494393207,0.29331104,681.87,681.17,0.55932507]
[1748494393706,0.29331104,681.87,681.18,0.55932507]
[1748494393901,0.29331104,681.87,681.19,0.55939054]
[1748494394305,0.29331104,681.87,681.2,0.55939299]
[1748494394504,0.29331104,681.87,681.21,0.55941827]
[1748494394701,0.29331104,681.87,681.22,0.55944118]
[1748494395000,0.29331104,681.87,681.23,0.55941438]
[1748494395206,0.29331104,681.87,681.24,0.55941313]
[1748494395401,0.29331104,681.87,681.25,0.55941313]
[1748494395605,0.29331104,681.87,681.26,0.55941181]
[1748494395805,0.29331104,681.87,681.27,0.55941181]
[1748494396105,0.29331104,681.87,681.28,0.55939993]
[1748494396402,0.29331104,681.87,681.15,0.531]
[1748494396606,0.29331104,681.87,681.16,0.55940683]
[1748494396900,0.29331104,681.87,681.17,0.55938092]
[1748494397105,0.29331104,681.87,681.18,0.55938092]
[1748494397302,0.29331104,681.87,681.15,0.531]
[1748494397506,0.29331104,681.87,681.16,0.5593947]
[1748494397705,0.29331104,681.87,681.17,0.5593947]
[1748494397907,0.29331104,681.87,681.18,0.5593947]
[1748494398107,0.29331104,681.87,681.15,0.531]
[1748494398506,0.29331104,681.87,681.16,0.55928542]
[1748494398808,0.29331104,681.87,681.17,0.55928542]
[1748494399006,0.29331104,681.87,681.18,0.55928542]
[1748494399207,0.29331104,681.87,681.19,0.55926849]